[Event "7th Summer Cup 2024"]
[Site "Rhodes"]
[Date "2024.06.30"]
[Round "9.2"]
[White "Stefanova, Antoaneta"]
[Black "Witczak, Borys"]
[Result "1-0"]
[ECO "E11"]
[WhiteElo "2417"]
[BlackElo "1937"]
[Annotator "RC"]
[PlyCount "57"]
[EventDate "2024.06.21"]
[EventType "swiss"]
[EventCountry "GRE"]
[SourceTitle "playchess.com"]
[Source "ChessBase"]
[SourceQuality "1"]
[TimeControl "40/5400+30:900+30"]

1. d4 {[%emt 0:06:09]} Nf6 {[%emt 0:00:27]} 2. c4 {[%emt 0:00:19]} e6 {[%emt 0:00:31]} 3. Nf3 {[%emt 0:01:09]} Bb4+ {[%emt 0:00:08]} 4. Nbd2 {[%emt 0:01:46]} b6 {[%emt 0:00:53]} 5. a3 {[%emt 0:22:12]} Bxd2+ {[%emt 0:00:51]} 6. Qxd2 {[%emt 0:00:09]} Bb7 {[%emt 0:00:50]} 7. b4 {[%emt 0:03:46]} a5 {[%emt 0:06:22]} 8. b5 {[%emt 0:02:06]} O-O {[%emt 0:00:23]} 9. Bb2 {[%emt 0:02:19]} d6 {[%emt 0:00:57]} 10. e3 {[%emt 0:02:15]} Nbd7 {[%emt 0:03:44]} 11. Bd3 {[%emt 0:01:23]} Ne4 {[%emt 0:01:07]} 12. Qc2 {[%emt 0:00:07]} f5 {[%emt 0:00:11]} 13. O-O {[%emt 0:04:07]} g5 {[%emt 0:22:39]} 14. Ne1 {[%emt 0:07:33]} g4 {[%emt 0:24:41]} 15. f3 {[%emt 0:00:20]} g3 {[%emt 0:08:14]} 16. fxe4 {[%emt 0:04:10]} fxe4 {[%emt 0:00:05]} 17. Rxf8+ {[%emt 0:23:11]} Qxf8 {[%emt 0:01:16]} 18. hxg3 {[%emt 0:03:34]} exd3 {[%emt 0:02:04]} 19. Nxd3 {[%emt 0:02:31]} Be4 {[%emt 0:03:59]} 20. Qe2 {[%emt 0:02:35]} Qf5 {[%emt 0:04:24]} 21. Nf4 {[%emt 0:03:48]} Nf6 {[%emt 0:00:09]} 22. Rf1 {[%emt 0:00:46]} Kg7 {[%emt 0:10:18]} 23. d5 {[%emt 0:00:59]} Kg8 {[%emt 0:03:21]} 24. Nxe6 {[%emt 0:01:08]} Qh5 {[%emt 0:00:04]} 25. Qf2 {[%emt 0:02:38]} Rf8 {[%emt 0:00:55]} 26. Bxf6 {[%emt 0:00:31]} Rf7 {[%emt 0:00:49]} 27. Ng5 {[%emt 0:00:57]} Bd3 {[%emt 0:01:35]} 28. Nxf7 {[%emt 0:00:08]} Bxf1 {[%emt 0:00:14]} 29. Qxf1 {[%emt 0:00:18]} 1-0

[Event "7th Summer Cup 2024"]
[Site "Rhodes"]
[Date "2024.06.30"]
[Round "9.3"]
[White "Kotronias, Vasilios"]
[Black "Sibashvili, Giorgi"]
[Result "1-0"]
[ECO "B69"]
[WhiteElo "2415"]
[BlackElo "2423"]
[Annotator "RC"]
[PlyCount "97"]
[EventDate "2024.06.21"]
[EventType "swiss"]
[EventCountry "GRE"]
[SourceTitle "playchess.com"]
[Source "ChessBase"]
[SourceQuality "1"]
[TimeControl "40/5400+30:900+30"]

1. e4 {[%emt 0:00:12]} c5 {[%emt 0:02:28]} 2. Nf3 {[%emt 0:01:01]} d6 {[%emt 0:00:12]} 3. d4 {[%emt 0:00:06]} cxd4 {[%emt 0:00:07]} 4. Nxd4 {[%emt 0:00:02]} Nf6 {[%emt 0:00:06]} 5. Nc3 {[%emt 0:00:04]} Nc6 {[%emt 0:00:06]} 6. Bg5 {[%emt 0:00:07]} e6 {[%emt 0:00:11]} 7. Qd2 {[%emt 0:00:06]} a6 {[%emt 0:00:05]} 8. O-O-O {[%emt 0:00:16]} Bd7 {[%emt 0:00:08]} 9. f4 {[%emt 0:00:17]} Be7 {[%emt 0:00:16]} 10. Nf3 {[%emt 0:00:45]} b5 {[%emt 0:00:18]} 11. Bxf6 {[%emt 0:00:42]} gxf6 {[%emt 0:00:22]} 12. Bd3 {[%emt 0:00:28]} Qb6 {[%emt 0:01:08]} 13. Kb1 {[%emt 0:00:36]} O-O-O {[%emt 0:04:14]} 14. Rhe1 {[%emt 0:01:19]} Kb8 {[%emt 0:00:50]} 15. Nd5 {[%emt 0:00:54]} exd5 {[%emt 0:07:34]} 16. exd5 {[%emt 0:00:32]} Ne5 {[%emt 0:00:15]} 17. fxe5 {[%emt 0:00:05]} fxe5 {[%emt 0:10:07]} 18. Qh6 {[%emt 0:00:06]} Qc7 {[%emt 0:07:23]} 19. Qh5 {[%emt 0:00:32]} Rdg8 {[%emt 0:14:10]} 20. Qxf7 {[%emt 0:09:43]} Qd8 {[%emt 0:02:41]} 21. Qh5 {[%emt 0:04:55]} Qf8 {[%emt 0:09:45]} 22. Re4 {[%emt 0:20:54]} Rxg2 {[%emt 0:04:41]} 23. a4 {[%emt 0:00:26]} Rhg8 {[%emt 0:08:51]} 24. Rf1 {[%emt 0:05:28]} Qe8 {[%emt 0:12:33]} 25. Qh6 {[%emt 0:01:30]} Kb7 {[%emt 0:06:15]} 26. axb5 {[%emt 0:01:23]} axb5 {[%emt 0:00:17]} 27. Rb4 {[%emt 0:00:42]} R8g4 {[%emt 0:04:49]} 28. Rxg4 {[%emt 0:00:38]} Rxg4 {[%emt 0:00:15]} 29. Qxh7 {[%emt 0:01:09]} Rf4 {[%emt 0:02:38]} 30. Nd2 {[%emt 0:03:10]} Rxf1+ {[%emt 0:01:27]} 31. Nxf1 {[%emt 0:00:23]} Kc7 {[%emt 0:01:08]} 32. Ng3 {[%emt 0:00:14]} Kd8 {[%emt 0:00:15]} 33. Bf5 {[%emt 0:00:16]} Qf8 {[%emt 0:00:54]} 34. Bxd7 {[%emt 0:02:36]} Kxd7 {[%emt 0:00:04]} 35. Qf5+ {[%emt 0:02:31]} Qxf5 {[%emt 0:00:16]} 36. Nxf5 {[%emt 0:00:05]} Bg5 {[%emt 0:00:34]} 37. h4 {[%emt 0:01:41]} Bf4 {[%emt 0:00:04]} 38. c3 {[%emt 0:00:36]} e4 {[%emt 0:00:30]} 39. Kc2 {[%emt 0:00:04]} Ke8 {[%emt 0:00:32]} 40. Nd4 {[%emt 0:00:00]} Kf7 {[%emt 0:00:00]} 41. Nxb5 {[%emt 0:01:00]} Kg6 {[%emt 0:01:38]} 42. c4 {[%emt 0:00:52]} Kh5 {[%emt 0:00:24]} 43. Nc3 {[%emt 0:02:17]} e3 {[%emt 0:00:26]} 44. Ne2 {[%emt 0:01:15]} Bh6 {[%emt 0:01:03]} 45. b4 {[%emt 0:00:08]} Kxh4 {[%emt 0:00:15]} 46. b5 {[%emt 0:00:10]} Bg5 {[%emt 0:00:26]} 47. b6 {[%emt 0:00:12]} Bd8 {[%emt 0:00:06]} 48. b7 {[%emt 0:00:04]} Bc7 {[%emt 0:00:04]} 49. Kd3 {[%emt 0:00:06]} 1-0

[Event "7th Summer Cup 2024"]
[Site "Rhodes"]
[Date "2024.06.30"]
[Round "9.5"]
[White "Papasimakopoulos, Alexandros"]
[Black "Szalay-Ocsak, Bank"]
[Result "1/2-1/2"]
[ECO "D02"]
[WhiteElo "2375"]
[BlackElo "2279"]
[Annotator "RC"]
[PlyCount "92"]
[EventDate "2024.06.21"]
[EventType "swiss"]
[EventCountry "GRE"]
[SourceTitle "playchess.com"]
[Source "ChessBase"]
[SourceQuality "1"]
[TimeControl "40/5400+30:900+30"]

1. d4 {[%emt 0:03:05]} d5 {[%emt 0:00:19]} 2. Nf3 {[%emt 0:00:32]} Nf6 {[%emt 0:00:07]} 3. Nbd2 {[%emt 0:00:49]} e6 {[%emt 0:01:56]} 4. e3 {[%emt 0:02:27]} b6 {[%emt 0:01:20]} 5. c4 {[%emt 0:02:09]} Bb7 {[%emt 0:03:35]} 6. cxd5 {[%emt 0:01:53]} exd5 {[%emt 0:00:18]} 7. Qa4+ {[%emt 0:02:22]} c6 {[%emt 0:03:15]} 8. Ne5 {[%emt 0:00:48]} Bd6 {[%emt 0:00:19]} 9. f4 {[%emt 0:00:14]} O-O {[%emt 0:00:46]} 10. Bd3 {[%emt 0:00:04]} c5 {[%emt 0:02:25]} 11. O-O {[%emt 0:00:21]} Qc8 {[%emt 0:08:50]} 12. Ndf3 {[%emt 0:03:13]} Ba6 {[%emt 0:01:47]} 13. Bxa6 {[%emt 0:02:12]} Qxa6 {[%emt 0:02:45]} 14. Qxa6 {[%emt 0:00:06]} Nxa6 {[%emt 0:00:07]} 15. dxc5 {[%emt 0:01:16]} bxc5 {[%emt 0:03:44]} 16. Rd1 {[%emt 0:00:27]} Rab8 {[%emt 0:04:56]} 17. b3 {[%emt 0:00:20]} Nb4 {[%emt 0:01:58]} 18. Bd2 {[%emt 0:06:44]} Rfc8 {[%emt 0:02:36]} 19. Bxb4 {[%emt 0:02:05]} Rxb4 {[%emt 0:01:24]} 20. g4 {[%emt 0:00:50]} h6 {[%emt 0:28:44]} 21. h4 {[%emt 0:01:03]} g5 {[%emt 0:09:54]} 22. hxg5 {[%emt 0:00:13]} hxg5 {[%emt 0:01:53]} 23. fxg5 {[%emt 0:02:19]} Bxe5 {[%emt 0:04:02]} 24. Nxe5 {[%emt 0:00:21]} Nxg4 {[%emt 0:00:07]} 25. Rxd5 {[%emt 0:00:14]} Nxe5 {[%emt 0:07:22]} 26. Rxe5 {[%emt 0:00:02]} c4 {[%emt 0:00:08]} 27. Rc1 {[%emt 0:01:56]} Kg7 {[%emt 0:00:32]} 28. bxc4 {[%emt 0:01:50]} Rcxc4 {[%emt 0:01:01]} 29. Rxc4 {[%emt 0:00:06]} Rxc4 {[%emt 0:00:06]} 30. Ra5 {[%emt 0:00:04]} Rc2 {[%emt 0:00:28]} 31. Kf1 {[%emt 0:03:39]} Kg6 {[%emt 0:01:15]} 32. Ke1 {[%emt 0:00:01]} Rg2 {[%emt 0:02:06]} 33. Kf1 {[%emt 0:00:28]} Rb2 {[%emt 0:00:54]} 34. a4 {[%emt 0:00:06]} Ra2 {[%emt 0:01:04]} 35. Ke1 {[%emt 0:00:05]} Kh5 {[%emt 0:03:29]} 36. Kd1 {[%emt 0:01:11]} Kg4 {[%emt 0:00:38]} 37. Kc1 {[%emt 0:00:59]} Kf3 {[%emt 0:00:46]} 38. Rxa7 {[%emt 0:18:32]} Kxe3 {[%emt 0:00:05]} 39. a5 {[%emt 0:00:02]} Kd4 {[%emt 0:02:09]} 40. a6 {[%emt 0:00:00]} Kc5 {[%emt 0:00:00]} 41. Kb1 {[%emt 0:02:05]} Ra5 {[%emt 0:07:17]} 42. Rxf7 {[%emt 0:04:42]} Rxa6 {[%emt 0:00:57]} 43. Rf5+ {[%emt 0:00:57]} Kd4 {[%emt 0:00:30]} 44. Rf6 {[%emt 0:00:06]} Ra7 {[%emt 0:01:00]} 45. g6 {[%emt 0:00:17]} Rg7 {[%emt 0:00:22]} 46. Rf7 {[%emt 0:00:13]} Rxg6 {[%emt 0:00:08]} 1/2-1/2

[Event "7th Summer Cup 2024"]
[Site "Rhodes"]
[Date "2024.06.30"]
[Round "9.6"]
[White "Budisavljevic, Luka"]
[Black "Rigopoulos-Tsigkos, Alexandros"]
[Result "1-0"]
[ECO "D30"]
[WhiteElo "2468"]
[BlackElo "2039"]
[Annotator "TA"]
[PlyCount "73"]
[EventDate "2024.06.21"]
[EventType "swiss"]
[EventCountry "GRE"]
[SourceTitle "playchess.com"]
[Source "ChessBase"]
[SourceQuality "1"]
[TimeControl "40/5400+30:900+30"]

{[%evp 20,73,42,41,64,51,79,74,68,72,81,85,69,83,81,76,72,76,87,75,87,0,31,14,25,15,16,8,19,0,8,0,0,0,0,-2,0,-1,21,0,0,0,137,128,1341,1347,1365,1370,1340,1349,1362,1374,1243,1227,29991,29992]} 1. Nf3 {[%emt 0:00:10]} d5 {[%emt 0:05:15]} 2. c4 {[%emt 0:00:49]} c6 {[%emt 0:00:31]} 3. e3 {[%emt 0:00:22]} Nf6 {[%emt 0:00:47]} 4. d4 {[%emt 0:00:05]} e6 {[%emt 0:00:26]} 5. Nbd2 {[%emt 0:00:29]} Be7 {[%emt 0:02:03]} 6. Bd3 {[%emt 0:00:36]} a6 {[%emt 0:00:27]} 7. O-O {[%emt 0:01:49]} O-O {[%emt 0:00:47]} 8. e4 {[%emt 0:02:40]} dxe4 {[%emt 0:00:25]} 9. Nxe4 {[%emt 0:00:06]} Nbd7 {[%emt 0:02:53]} 10. b3 {[%emt 0:03:47]} Nxe4 {[%emt 0:04:07]} 11. Bxe4 {[%emt 0:00:02]} Bf6 {[%emt 0:00:56]} 12. Bb2 {[%emt 0:03:23]} Re8 {[%emt 0:05:56]} 13. Re1 {[%emt 0:05:14]} c5 {[%emt 0:03:00] White is better.} 14. Qc2 {[%emt 0:14:16]} h6 {[%emt 0:02:17]} 15. Rad1 {[%emt 0:00:29] White is more active.} cxd4 {[%emt 0:00:40]} 16. Nxd4 {[%emt 0:00:54]} Qc7 {[%emt 0:01:54]} 17. Re3 {[%emt 0:02:24]} Nc5 {[%emt 0:02:41]} 18. Bh7+ {[%emt 0:03:44]} Kh8 {[%emt 0:02:06]} 19. b4 {[%emt 0:03:12]} Nd7 {[%emt 0:03:25]} 20. Bd3 {[%emt 0:07:34]} (20. c5 $16) 20... Ne5 {[%emt 0:03:18]} 21. Be2 {[%emt 0:01:30]} Bd7 {[%emt 0:06:08]} 22. Nb3 {[%emt 0:03:42] [#] Hoping for Bxe5.} Ba4 {[%emt 0:04:57]} 23. Re1 {[%emt 0:09:28]} Rec8 {[%emt 0:07:32][%cal Re5c4]} 24. Rh3 {[%emt 0:03:18]} Qe7 {[%emt 0:11:42]} 25. Bxe5 {[%emt 0:01:24]} Bxe5 {[%emt 0:00:28]} 26. Qe4 {[%emt 0:00:18]} Bf6 $1 {[%emt 0:00:46][%cal Oa4c6]} (26... Qxb4 $2 27. Bd3 Bxh2+ 28. Kxh2 (28. Rxh2 Kg8 $18) 28... Qd6+ 29. Kg1 $18) 27. Bd3 {[%emt 0:00:26]} g6 $1 {[%emt 0:01:30][%cal Oa4b3]} 28. Nc5 $132 {[%emt 0:00:36][%mdl 2048] White is not holding back} Bc6 {[%emt 0:04:49]} 29. Rxh6+ {[%emt 0:00:50]} (29. Qe3 $5 h5 30. Rxh5+ Kg8 (30... gxh5 $2 31. Qh6+ Kg8 32. Re3 $18) 31. Qh6 $11) 29... Kg8 $1 {[%emt 0:00:48][%cal Bh8g8,Bg8f8,Bf8e7,Be7d6][%mdl 32]} 30. Qg4 {[%emt 0:00:37][%cal Od3g6] Strongly threatening Bxg6!} Bg7 {[%emt 0:04:17] [#] This pair of bishops is nice.} (30... Be8 $1 $11 {remains equal.}) 31. Rxe6 $1 $16 {[%emt 0:12:10]} fxe6 {[%emt 0:04:55][%mdl 8192] This costs Black the game.} (31... Bd7 $16 32. Qxg6 (32. Nxb7 $2 {too greedy.} Bxe6 33. Qh4 Qxb7 $19) (32. Rxe7 Bxg4 33. h3 Bxh6 $17) 32... fxg6 (32... Bxe6 33. Rh8+ Kxh8 34. Qh7#) 33. Rxe7 Bxh6) 32. Qxg6 $18 {[%emt 0:00:10][%cal Oh6h8] White wants to mate with Rh8+!} Kf8 {[%emt 0:07:04]} 33. Nxe6+ {[%emt 0:00:03]} Qxe6 {[%emt 0:00:07]} 34. Qxe6 {[%emt 0:00:02] Qd6+ would kill now.} Bxh6 {[%emt 0:00:23]} 35. Qxh6+ {[%emt 0:00:18]} Ke7 {[%emt 0:00:45]} 36. Qg5+ {[%emt 0:00:46]} Kd6 {[%emt 0:00:20]} 37. c5+ {[%emt 0:00:03] Weighted Error Value: White=0.10 (very precise) /Black=0.47.  Loses game:     	---       	Black=1      Mistake:       	White=1     	Black=1      Inaccurate:     	---       	Black=2      OK:         	White=4     	Black=7      Best:        	White=3     	Black=3      Strong:       	White=1     	Black=3} 1-0

[Event "7th Summer Cup 2024"]
[Site "Rhodes"]
[Date "2024.06.30"]
[Round "9.7"]
[White "Grapsa, Georgia"]
[Black "Seres, Bela"]
[Result "1/2-1/2"]
[ECO "E16"]
[WhiteElo "1979"]
[BlackElo "2126"]
[Annotator "RC"]
[PlyCount "43"]
[EventDate "2024.06.21"]
[EventType "swiss"]
[EventCountry "GRE"]
[SourceTitle "playchess.com"]
[Source "ChessBase"]
[SourceQuality "1"]
[TimeControl "40/5400+30:900+30"]

1. d4 {[%emt 0:00:03]} Nf6 {[%emt 0:00:29]} 2. Nf3 {[%emt 0:00:05]} e6 {[%emt 0:00:19]} 3. c4 {[%emt 0:00:06]} Bb4+ {[%emt 0:00:56]} 4. Bd2 {[%emt 0:00:05]} a5 {[%emt 0:01:03]} 5. g3 {[%emt 0:02:46]} b6 {[%emt 0:01:38]} 6. Bg2 {[%emt 0:00:47]} Bb7 {[%emt 0:00:10]} 7. a3 {[%emt 0:00:28]} Bxd2+ {[%emt 0:01:40]} 8. Qxd2 {[%emt 0:00:19]} d6 {[%emt 0:06:31]} 9. O-O {[%emt 0:01:04]} O-O {[%emt 0:00:23]} 10. Nc3 {[%emt 0:02:56]} Qe7 {[%emt 0:08:17]} 11. Qc2 {[%emt 0:05:24]} Nbd7 {[%emt 0:01:04]} 12. Rfe1 {[%emt 0:01:03]} e5 {[%emt 0:01:03]} 13. Nxe5 {[%emt 0:09:08]} Bxg2 {[%emt 0:01:09]} 14. Nxd7 {[%emt 0:01:58]} Qxd7 {[%emt 0:00:08]} 15. Kxg2 {[%emt 0:00:20]} Qc6+ {[%emt 0:00:35]} 16. e4 {[%emt 0:01:18]} Qxc4 {[%emt 0:00:08]} 17. Rad1 {[%emt 0:07:20]} Rfe8 {[%emt 0:06:18]} 18. b3 {[%emt 0:05:38]} Qa6 {[%emt 0:17:16]} 19. a4 {[%emt 0:10:28]} Qb7 {[%emt 0:07:07]} 20. f3 {[%emt 0:12:29]} c6 {[%emt 0:08:58]} 21. Qd2 {[%emt 0:12:36]} Rad8 {[%emt 0:13:15]} 22. g4 {[%emt 0:04:06]} 1/2-1/2

[Event "7th Summer Cup 2024"]
[Site "Rhodes"]
[Date "2024.06.30"]
[Round "9.8"]
[White "Mickiewicz, Piotr"]
[Black "Hofstadler, Mario"]
[Result "1-0"]
[ECO "A15"]
[WhiteElo "2257"]
[BlackElo "2103"]
[Annotator "RC"]
[PlyCount "95"]
[EventDate "2024.06.21"]
[EventType "swiss"]
[EventCountry "GRE"]
[SourceTitle "playchess.com"]
[Source "ChessBase"]
[SourceQuality "1"]
[TimeControl "40/5400+30:900+30"]

1. b3 {[%emt 1:31:00]} Nf6 {[%emt 1:31:00]} 2. Bb2 {[%emt 0:00:30]} g6 {[%emt 0:00:30]} 3. Nf3 {[%emt 0:00:30]} Bg7 {[%emt 0:00:30]} 4. c4 {[%emt 0:00:00]} O-O {[%emt 0:00:00]} 5. g3 {[%emt 0:01:00]} d6 {[%emt 0:01:00]} 6. Bg2 {[%emt 0:00:30]} e5 {[%emt 0:00:30]} 7. d3 {[%emt 0:00:00]} Nc6 {[%emt 0:00:30]} 8. Nbd2 {[%emt 0:01:00]} Re8 {[%emt 0:00:00]} 9. e4 {[%emt 0:00:00]} Nd7 {[%emt 0:01:00]} 10. O-O {[%emt 0:00:00]} Nc5 {[%emt 0:00:00]} 11. Qb1 {[%emt 0:01:30]} Rb8 {[%emt 0:01:00]} 12. a3 {[%emt 0:00:00]} a5 {[%emt 0:00:00]} 13. Qc2 {[%emt 0:01:00]} b5 {[%emt 0:00:00]} 14. Bc3 {[%emt 0:00:30]} b4 {[%emt 0:00:00]} 15. axb4 {[%emt 0:00:00]} Nxb4 {[%emt 0:00:00]} 16. Bxb4 {[%emt 0:00:00]} axb4 {[%emt 0:00:00]} 17. Ra5 {[%emt 0:00:00]} c6 {[%emt 0:00:00]} 18. Rfa1 {[%emt 0:00:00]} Qb6 {[%emt 0:03:30]} 19. h4 {[%emt 0:02:30]} Bd7 {[%emt 0:00:00]} 20. Kh2 {[%emt 0:00:30]} Nb7 {[%emt 0:00:00]} 21. c5 {[%emt 0:00:30]} dxc5 {[%emt 0:00:00]} 22. Nc4 {[%emt 0:00:00]} Qc7 {[%emt 0:00:00]} 23. Ra7 {[%emt 0:01:00]} Qd8 {[%emt 0:02:30]} 24. Bh3 {[%emt 0:00:00]} Bxh3 {[%emt 0:00:00]} 25. Kxh3 {[%emt 0:00:00]} Nd6 {[%emt 0:00:00]} 26. Nxd6 {[%emt 0:00:00]} Qxd6 {[%emt 0:00:00]} 27. Ng5 {[%emt 0:00:00]} Re7 {[%emt 0:00:00]} 28. Qc4 {[%emt 0:02:30]} Rf8 {[%emt 0:02:30]} 29. Kg2 {[%emt 0:00:00]} h6 {[%emt 0:00:00]} 30. Nf3 {[%emt 0:00:00]} Rd8 {[%emt 0:01:00]} 31. h5 {[%emt 0:00:00]} Kh7 {[%emt 0:00:00]} 32. Rxe7 {[%emt 0:00:00]} Qxe7 {[%emt 0:00:00]} 33. Ra5 {[%emt 0:00:00]} Bf8 {[%emt 0:00:04]} 34. Nh4 {[%emt 0:01:03]} Kg7 {[%emt 0:01:56]} 35. Ra6 {[%emt 0:01:27]} Qd7 {[%emt 0:00:00]} 36. hxg6 {[%emt 0:00:45]} fxg6 {[%emt 0:00:00]} 37. Nf3 {[%emt 0:00:12]} Bd6 {[%emt 0:00:00]} 38. Qc2 {[%emt 0:01:33]} Rb8 {[%emt 0:01:06]} 39. Qe2 {[%emt 0:00:00]} Rb7 {[%emt 0:00:53]} 40. Nd2 {[%emt 0:00:00]} Bb8 {[%emt 0:00:00]} 41. Nc4 {[%emt 0:16:30]} h5 {[%emt 0:04:37]} 42. Qe3 {[%emt 0:00:30]} Ra7 {[%emt 0:12:24]} 43. Rxa7 {[%emt 0:00:00]} Qxa7 {[%emt 0:00:00]} 44. Qg5 {[%emt 0:00:00]} Qc7 {[%emt 0:01:00]} 45. Kf1 {[%emt 0:01:30]} Kh7 {[%emt 0:00:00]} 46. Qf6 {[%emt 0:00:30]} Kh6 {[%emt 0:00:00]} 47. Qf8+ {[%emt 0:00:00]} Kg5 {[%emt 0:00:00]} 48. Nxe5 {[%emt 0:00:00]} 1-0

[Event "7th Summer Cup 2024"]
[Site "Rhodes"]
[Date "2024.06.30"]
[Round "9.9"]
[White "Baruch, Amit"]
[Black "Ballas, Athanasios-panagioti"]
[Result "0-1"]
[ECO "B07"]
[WhiteElo "1614"]
[BlackElo "2151"]
[Annotator "RC"]
[PlyCount "58"]
[EventDate "2024.06.21"]
[EventType "swiss"]
[EventCountry "GRE"]
[SourceTitle "playchess.com"]
[Source "ChessBase"]
[SourceQuality "1"]
[TimeControl "40/5400+30:900+30"]

1. e4 {[%emt 0:00:03]} d6 {[%emt 0:01:50]} 2. d4 {[%emt 0:00:14]} Nf6 {[%emt 0:00:06]} 3. Nc3 {[%emt 0:01:41]} c6 {[%emt 0:00:06]} 4. f3 {[%emt 0:05:57]} Nbd7 {[%emt 0:02:01]} 5. Be3 {[%emt 0:02:52]} b5 {[%emt 0:01:43]} 6. a3 {[%emt 0:05:52]} Bb7 {[%emt 0:03:42]} 7. Bd3 {[%emt 0:02:51]} e5 {[%emt 0:00:31]} 8. Nge2 {[%emt 0:01:09]} Be7 {[%emt 0:01:02]} 9. g4 {[%emt 0:01:37]} O-O {[%emt 0:02:48]} 10. h4 {[%emt 0:04:55]} a5 {[%emt 0:00:35]} 11. Ng3 {[%emt 0:03:30]} exd4 {[%emt 0:02:05]} 12. Bxd4 {[%emt 0:01:47]} b4 {[%emt 0:00:33]} 13. Nce2 {[%emt 0:01:46]} c5 {[%emt 0:01:35]} 14. Be3 {[%emt 0:01:29]} c4 {[%emt 0:05:07]} 15. Bxc4 {[%emt 0:03:21]} Ne5 {[%emt 0:00:05]} 16. Nd4 {[%emt 0:14:02]} Nxc4 {[%emt 0:00:31]} 17. Bc1 {[%emt 0:02:38]} d5 {[%emt 0:01:37]} 18. g5 {[%emt 0:04:39]} Bd6 {[%emt 0:03:01]} 19. Ngf5 {[%emt 0:02:50]} Nh5 {[%emt 0:01:02]} 20. f4 {[%emt 0:08:56]} Nxf4 {[%emt 0:01:16]} 21. Qg4 {[%emt 0:00:14]} Ne5 {[%emt 0:01:29]} 22. Qg1 {[%emt 0:06:37]} Ne6 {[%emt 0:01:13]} 23. h5 {[%emt 0:05:04]} Nxd4 {[%emt 0:00:33]} 24. Nxd4 {[%emt 0:00:08]} Bc5 {[%emt 0:00:36]} 25. Ke2 {[%emt 0:00:58]} Ba6+ {[%emt 0:00:22]} 26. Kd1 {[%emt 0:01:36]} dxe4 {[%emt 0:01:40]} 27. c3 {[%emt 0:03:43]} Nf3 {[%emt 0:00:30]} 28. Qe3 {[%emt 0:01:34]} Nxd4 {[%emt 0:00:32]} 29. cxd4 {[%emt 0:00:27]} Bxd4 {[%emt 0:00:11]} 0-1

[Event "7th Summer Cup 2024"]
[Site "Rhodes"]
[Date "2024.06.30"]
[Round "9.10"]
[White "Ghaith Saeed Alnuaimi"]
[Black "Gelle, Istvan"]
[Result "1/2-1/2"]
[ECO "B19"]
[WhiteElo "1799"]
[BlackElo "2163"]
[Annotator "RC"]
[PlyCount "90"]
[EventDate "2024.06.21"]
[EventType "swiss"]
[EventCountry "GRE"]
[SourceTitle "playchess.com"]
[Source "ChessBase"]
[SourceQuality "1"]
[TimeControl "40/5400+30:900+30"]

1. e4 {[%emt 0:11:18]} c6 {[%emt 0:00:04]} 2. d4 {[%emt 0:00:23]} d5 {[%emt 0:00:07]} 3. Nc3 {[%emt 0:00:05]} dxe4 {[%emt 0:00:08]} 4. Nxe4 {[%emt 0:00:08]} Bf5 {[%emt 0:00:08]} 5. Ng3 {[%emt 0:00:09]} Bg6 {[%emt 0:00:08]} 6. h4 {[%emt 0:00:35]} h6 {[%emt 0:00:10]} 7. Nf3 {[%emt 0:00:05]} e6 {[%emt 0:00:08]} 8. Ne5 {[%emt 0:00:14]} Bh7 {[%emt 0:00:11]} 9. Qh5 {[%emt 1:22:03]} Qc7 {[%emt 0:01:10]} 10. Bc4 {[%emt 0:00:00]} Nf6 {[%emt 0:01:04]} 11. Qe2 {[%emt 0:00:00]} Bd6 {[%emt 0:07:50]} 12. Bd2 {[%emt 0:00:00]} O-O {[%emt 0:03:23]} 13. O-O-O {[%emt 0:00:00]} b5 {[%emt 0:06:47]} 14. Bd3 {[%emt 0:00:00]} Bxd3 {[%emt 0:01:38]} 15. Nxd3 {[%emt 0:00:00]} Nbd7 {[%emt 0:01:14]} 16. Ne4 {[%emt 0:00:00]} Nd5 {[%emt 0:07:28]} 17. g4 {[%emt 0:00:00]} Nf4 {[%emt 0:10:38]} 18. Nxf4 {[%emt 0:00:00]} Bxf4 {[%emt 0:00:07]} 19. g5 {[%emt 0:00:00]} Bxd2+ {[%emt 0:07:08]} 20. Nxd2 {[%emt 0:00:00]} Qf4 {[%emt 0:06:41]} 21. Rdg1 {[%emt 0:00:00]} Kh8 {[%emt 0:07:22]} 22. Rg4 {[%emt 0:00:00]} Qf5 {[%emt 0:00:36]} 23. Rg3 {[%emt 0:00:00]} e5 {[%emt 0:08:41]} 24. Rf3 {[%emt 0:00:00]} Qg4 {[%emt 0:03:06]} 25. Qe4 {[%emt 0:00:00]} Qxe4 {[%emt 0:00:56]} 26. Nxe4 {[%emt 0:00:00]} exd4 {[%emt 0:02:20]} 27. Rd1 {[%emt 0:00:00]} f6 {[%emt 0:16:02]} 28. Rxd4 {[%emt 0:00:00]} fxg5 {[%emt 0:00:29]} 29. Rxf8+ {[%emt 0:00:00]} Nxf8 {[%emt 0:00:08]} 30. hxg5 {[%emt 0:00:00]} Ne6 {[%emt 0:04:24]} 31. Rd6 {[%emt 0:00:18]} Nxg5 {[%emt 0:01:55]} 32. Nxg5 {[%emt 0:00:05]} hxg5 {[%emt 0:00:04]} 33. Kd2 {[%emt 0:00:25]} Rc8 {[%emt 0:00:52]} 34. Rg6 {[%emt 0:00:25]} Kg8 {[%emt 0:01:10]} 35. Kd3 {[%emt 0:01:04]} Kf7 {[%emt 0:00:39]} 36. Rxg5 {[%emt 0:00:06]} Kf6 {[%emt 0:00:14]} 37. Rc5 {[%emt 0:00:05]} Rd8+ {[%emt 0:01:09]} 38. Ke4 {[%emt 0:00:31]} Re8+ {[%emt 0:01:03]} 39. Kf4 {[%emt 0:00:18]} Re6 {[%emt 0:00:28]} 40. a3 {[%emt 0:00:00]} a5 {[%emt 0:00:00]} 41. b3 {[%emt 0:03:39]} Rd6 {[%emt 0:03:11]} 42. Ke4 {[%emt 0:00:45]} Re6+ {[%emt 0:04:26]} 43. Kf4 {[%emt 0:00:18]} Rd6 {[%emt 0:00:10]} 44. Ke4 {[%emt 0:00:06]} Re6+ {[%emt 0:00:07]} 45. Kf4 {[%emt 0:00:07]} Rd6 {[%emt 0:00:07]} 1/2-1/2